Cogmind - Beta 16 @@@ ROGUE MODE // 2026.02.04 @ 06:29:50 Player: Ly0ko Result: Self-destructed Performance ------------- Evolutions (2) 1000 Regions Visited (5) 1000 Robots Destroyed (9) 45 Value Destroyed (83) 83 Prototype IDs (1) 20 Alien Tech Used (0) 0 Bonus (0) 0 TOTAL SCORE: 2148 Bonus ------- None Cogmind --------- Core Integrity 512/550 Matter 248/300 Energy 250/250 System Corruption 0% Temperature Cool (60) Movement Walking (190) Ox1 Location -8/Materials Parts ------- > --- POWER (1) -------- Ion Engine > --- PROPULSION (4) --- Aluminum Leg Aluminum Leg > --- UTILITY (3) ------ Small Storage Unit Sensor Drone Bay (8/20) > --- WEAPON (3) ------- EM Pulse Gun > --- INVENTORY (8) ---- Ion Engine Improved Ion Engine Light Treads Light Treads Scrap Suit Medium Laser Advanced EMP Blaster Peak State ------------ > --- POWER ------------ Ion Engine > --- PROPULSION ------- Aluminum Leg Aluminum Leg > --- UTILITY ---------- Small Storage Unit Sensor Drone Bay > --- WEAPON ----------- EM Pulse Gun Assault Rifle Grenade Launcher > --- INVENTORY -------- Ion Engine Improved Ion Engine Light Treads Light Treads Scrap Suit Medium Laser [Rating: 16] Favorites ----------- Power Ion Engine Engine Ion Engine Propulsion Aluminum Leg Leg Aluminum Leg Utility Small Storage Unit Device Sensor Drone Bay Storage Small Storage Unit Weapon EM Pulse Gun Energy Gun EM Pulse Gun Ballistic Gun Assault Rifle Launcher Grenade Launcher Build | -11 -10 -10 -10 -9 -8 ------- Run | Yrd Mat Min Exi Min Mat Slots Evolved 4 | . . . . . 4 Power . | . . . . . . Propulsion 2 | . . . . . 2 Utility 1 | . . . . . 1 Weapon 1 | . . . . . 1 Parts Attached 8 | 6 . 1 . 1 . Power 1 | 1 . . . . . Engine 1 | 1 . . . . . Core . | . . . . . . Reactor . | . . . . . . Propulsion 2 | 2 . . . . . Treads . | . . . . . . Leg 2 | 2 . . . . . Wheel . | . . . . . . Hover . | . . . . . . Flight . | . . . . . . Utility 2 | 1 . 1 . . . Device 1 | . . 1 . . . Storage 1 | 1 . . . . . Processor . | . . . . . . Hackware . | . . . . . . Protection . | . . . . . . Artifact . | . . . . . . Weapon 3 | 2 . . . 1 . Energy Gun 1 | 1 . . . . . Energy Cannon . | . . . . . . Ballistic Gun 1 | 1 . . . . . Ballistic Cannon . | . . . . . . Launcher 1 | . . . . 1 . Special Weapon . | . . . . . . Impact Weapon . | . . . . . . Slashing Weapon . | . . . . . . Piercing Weapon . | . . . . . . Special Melee Weapon . | . . . . . . Unidentified Prototypes 1 | . . 1 . . . Parts Lost 2 | . . . . . 2 Power . | . . . . . . Propulsion . | . . . . . . Utility . | . . . . . . Weapon 2 | . . . . . 2 Highest Loss Streak 2 | . . . . . 2 To Critical Strikes . | . . . . . . Average Backups 5 | 2 4 5 5 6 6 Power 1 | . 1 1 1 1 2 Propulsion 1 | 1 2 2 2 2 2 Utility . | . . . . . 1 Weapon 1 | . 1 2 2 2 1 Tool/Special . | . . . . . . Unused Backups 8 | . . . . 1 7 Power 2 | . . . . . 2 Propulsion 2 | . . . . . 2 Utility 1 | . . . . . 1 Weapon 3 | . . . . 1 2 Tool/Special . | . . . . . . Average Slot Usage (%) 92 | . 85 97 100 100 71 Engine 12 | . 14 14 14 14 9 Leg 25 | . 28 28 28 28 18 Device 11 | . . 12 14 14 9 Storage 12 | . 14 14 14 14 9 Energy Gun 12 | . 14 14 14 14 9 Ballistic Gun 11 | . 14 14 14 11 9 Launcher 2 | . . . . 2 8 Peak Build Rating 16 | 6 6 14 14 15 16 Average Rating 13 | 4 6 12 14 14 15 On Entrance 9 | . 6 6 14 14 15 Avg Prop Armor Cover (%) . | . . . . . . Naked Turns . | . . . . . . Heaviest Build 31 | 14 14 28 28 29 31 Greatest Support 20 | 20 20 20 20 20 20 Greatest Overweight (x) 1 | . . 1 1 1 1 Average Overweight (x) . | . . . 1 1 1 Largest Inventory Capacity 8 | 8 8 8 8 8 8 Average Capacity 7 | 7 8 8 8 8 8 Most Carried 8 | 4 5 5 5 8 8 Average Carried 6 | 2 4 5 5 6 7 Final Capacity 8 | 8 8 8 8 8 8 Final Carried 8 | 4 5 5 5 8 8 Class Distribution -------------------- 78% | Mutant 21% | Gunner Dominant Class ---------------- Mutant | -10/Materials Mutant | -10/Mines Mutant | -10/Exiles Mutant | -9/Mines Gunner | -8/Materials Resources | -11 -10 -10 -10 -9 -8 ----------- Run | Yrd Mat Min Exi Min Mat Matter Collected 270 | 237 . . . 33 . Remotely . | . . . . . . Salvage Created 111 | . . . . 27 84 Parts 17 | . . . . 8 9 Haulers Intercepted . | . . . . . . Recyclers Shooed . | . . . . . . Parts Field Recycled . | . . . . . . Retrieved Matter . | . . . . . . Parts Self-Destructed . | . . . . . . Prevented . | . . . . . . Parts Restored . | . . . . . . Kills | -11 -10 -10 -10 -9 -8 ------- Run | Yrd Mat Min Exi Min Mat Combat Hostiles Destroyed 7 | . . . . 4 3 AOE 7 | . . . . 4 3 Classes Destroyed 3 | . . . . 2 1 Tunneler 1 | . . . . 1 . Recycler 1 | . . . . . 1 Swarmer 7 | . . . . 4 3 Best Kill Streak 5 | . . . . 5 4 Combat Bots Only 4 | . . . . 4 3 Max Kills in Single Turn 4 | . . . . 2 4 Gunslinging . | . . . . . . Exploded 3 | . . . . 2 3 Melee . | . . . . . . Uniques/NPCs Destroyed . | . . . . . . Combat | -11 -10 -10 -10 -9 -8 -------- Run | Yrd Mat Min Exi Min Mat Hostile Shots Fired 71 | . . . . 10 61 Missed 20 | . . . . 3 17 Hits 51 | . . . . 7 44 Projectile 51 | . . . . 7 44 Critical Strikes 2 | . . . . . 2 Damage Taken 499 | . . . . 59 440 Core 55 | . . . . 17 38 Absorbed by Shields . | . . . . . . Core Remaining (%) 96 | 100 . . . 93 . Volleys Fired 6 | . . . . 4 2 Largest 3 | . . . . 2 3 Hottest 90 | . . . . 70 90 Shots Fired 13 | . . . . 7 6 Gun 8 | . . . . 4 4 Cannon . | . . . . . . Launcher 5 | . . . . 3 2 Special . | . . . . . . Kinetic 2 | . . . . . 2 Thermal . | . . . . . . Explosive 5 | . . . . 3 2 Electromagnetic 6 | . . . . 4 2 Robot Hit Streak 3 | . . . . 2 3 Robot Miss Streak 2 | . . . . 2 2 Penetration Max . | . . . . . . Secondary Targets . | . . . . . . Shots Hit Robots 6 | . . . . 3 3 Core Hits 11 | . . . . 5 6 Critical Kills . | . . . . . . Critical Parts Destroyed . | . . . . . . Critical Strikes . | . . . . . . Melee Attacks . | . . . . . . Impact . | . . . . . . Slashing . | . . . . . . Piercing . | . . . . . . Sneak Attacks . | . . . . . . Combat Hostiles . | . . . . . . Follow-up Attacks . | . . . . . . Damage Inflicted 561 | . . . . 351 210 Guns 44 | . . . . 20 24 Cannons . | . . . . . . Explosions 502 | . . . . 331 171 Melee . | . . . . . . Ramming 15 | . . . . . 15 Kinetic 13 | . . . . . 13 Thermal 62 | . . . . 62 . Explosive 440 | . . . . 269 171 Electromagnetic 31 | . . . . 20 11 Impact . | . . . . . . Slashing . | . . . . . . Piercing . | . . . . . . Highest Corruption . | . . . . . . Average Corruption . | . . . . . . Corruption Purged . | . . . . . . Corruption Blocked . | . . . . . . Overload Shots . | . . . . . . Overflow Damage . | . . . . . . Projectiles . | . . . . . . Explosions . | . . . . . . Melee . | . . . . . . Knockbacks . | . . . . . . Impact . | . . . . . . Kinetic . | . . . . . . Secondary . | . . . . . . Self-Inflicted Damage 14 | . . . . . 14 Shots 1 | . . . . . 1 Rammed . | . . . . . . Targets Rammed 5 | . . . . 1 4 Kicked 5 | . . . . 1 4 Crushed . | . . . . . . Highest Temperature 51 | . . . . 18 51 Average Temperature 15 | . . . . 9 26 Received Heat Transfer 54 | . . . . . 54 Siege Activations . | . . . . . . Martial Activations . | . . . . . . Shielding Activations . | . . . . . . Robots Disrupted . | . . . . . . Combat Hostiles . | . . . . . . Robots Corrupted . | . . . . . . Combat Hostiles . | . . . . . . Parts Fried . | . . . . . . Impact Corruptions . | . . . . . . Robots Melted . | . . . . . . Combat Hostiles . | . . . . . . Parts Melted 1 | . . . . . 1 Heat Transferred 150 | . . . . 150 . Parts Sabotaged . | . . . . . . Parts Stolen . | . . . . . . Parts Stripped . | . . . . . . Power Chain Reactions 1 | . . . . 1 . Alert | -11 -10 -10 -10 -9 -8 ------- Run | Yrd Mat Min Exi Min Mat Maximum Alert Level . | . . . . . . Low Security (%) 100 | 100 100 100 . 100 100 Level 1 . | . . . . . . Level 2 . | . . . . . . Level 3 . | . . . . . . Level 4 . | . . . . . . Level 5 . | . . . . . . High Security . | . . . . . . Max Security . | . . . . . . Peak Influence 109 | . . . . 109 81 Initial 26 | . . . . . 26 Average 7 | . . . . 14 3 Influence Increases 203 | . . . . 117 86 Destroy 0b10 Robot/C 140 | . . . . 80 60 Destroy 0b10 Robot/NC 10 | . . . . 5 5 Destroy Leader 20 | . . . . 10 10 Allied During Kill 1 | . . . . 1 . Destroy Structure 32 | . . . . 21 11 Influence Decreases 147 | . . . . 48 99 Entered New Map 43 | . . . . . 43 Time Decay 84 | . . . . 48 36 Lost Part 20 | . . . . . 20 Squads Dispatched 1 | . . . . . 1 Investigation . | . . . . . . Extermination . | . . . . . . Reinforcement 1 | . . . . . 1 Assault . | . . . . . . Garrison . | . . . . . . Intercept . | . . . . . . Searches Triggered . | . . . . . . Construction Impeded 1 | . . . . . 1 Haulers Reinforced . | . . . . . . Active Scanning Responses . | . . . . . . Cargo Convoy Interrupts . | . . . . . . Stealth | -11 -10 -10 -10 -9 -8 --------- Run | Yrd Mat Min Exi Min Mat Distress Signals 3 | . . . . . 3 Communications Jammed . | . . . . . . Distress Signals . | . . . . . . Times Spotted 14 | . . . . 4 10 Peak Tracking Total 9 | . . . . 4 9 Tactical Retreats . | . . . . . . Traps | -11 -10 -10 -10 -9 -8 ------- Run | Yrd Mat Min Exi Min Mat Traps Triggered . | . . . . . . Indirectly . | . . . . . . Trap Hack Attempts . | . . . . . . Triggered . | . . . . . . Disarmed . | . . . . . . Reprogrammed . | . . . . . . Reused . | . . . . . . Traps Extracted . | . . . . . . Installed . | . . . . . . Triggered . | . . . . . . Machines | -11 -10 -10 -10 -9 -8 ---------- Run | Yrd Mat Min Exi Min Mat Machines Disabled . | . . . . . . Max in Single Turn . | . . . . . . Machines Repaired . | . . . . . . Machines Dismantled . | . . . . . . Machines Sabotaged . | . . . . . . Overloaded Fab Kills . | . . . . . . Hacking | -11 -10 -10 -10 -9 -8 --------- Run | Yrd Mat Min Exi Min Mat Machines Accessed 1 | . . 1 . . . Terminals . | . . . . . . Fabricators . | . . . . . . Repair Stations . | . . . . . . Recycling Units . | . . . . . . Scanalyzers . | . . . . . . Garrison Access . | . . . . . . Total Hacks 1 | . . 1 . . . Successful 1 | . . 1 . . . Failed . | . . . . . . Catastrophic . | . . . . . . Database Lockouts . | . . . . . . Manual . | . . . . . . Terminals . | . . . . . . Fabricators . | . . . . . . Repair Stations . | . . . . . . Recycling Units . | . . . . . . Scanalyzers . | . . . . . . Garrison Access . | . . . . . . Terminal Hacks 1 | . . 1 . . . Open Door 1 | . . 1 . . . Fabricator Hacks . | . . . . . . Repair Station Hacks . | . . . . . . Recycling Unit Hacks . | . . . . . . Scanalyzer . | . . . . . . Garrison Access Hacks . | . . . . . . Unauthorized Hacks . | . . . . . . Terminals . | . . . . . . Fabricators . | . . . . . . Repair Stations . | . . . . . . Recycling Units . | . . . . . . Scanalyzers . | . . . . . . Garrison Access . | . . . . . . Data Cores Recovered . | . . . . . . Used . | . . . . . . Hacking Detections . | . . . . . . Full Trace Events . | . . . . . . Feedback Events . | . . . . . . Feedback Blocked . | . . . . . . Robot Schematics Acquired . | . . . . . . Robots Built . | . . . . . . Authchips . | . . . . . . Time . | . . . . . . Total Robot Build Rating . | . . . . . . Part Schematics Acquired . | . . . . . . Parts Built . | . . . . . . Authchips . | . . . . . . Time . | . . . . . . Total Part Build Rating . | . . . . . . Part Studies Acquired . | . . . . . . Parts Repaired . | . . . . . . Time . | . . . . . . Parts Recycled . | . . . . . . Recycled Matter . | . . . . . . Retrieved Matter . | . . . . . . Retrieved Components . | . . . . . . Parts Scanalyzed . | . . . . . . Part Schematics Acquired . | . . . . . . Parts Damaged . | . . . . . . Bothacking | -11 -10 -10 -10 -9 -8 ------------ Run | Yrd Mat Min Exi Min Mat Used RIF Installer . | . . . . . . Robots Hacked . | . . . . . . Non-combat . | . . . . . . Combat . | . . . . . . Robot Hacks Applied . | . . . . . . Relay Couplers Released . | . . . . . . Fabnet Peak Effective % . | . . . . . . Robots Rewired . | . . . . . . Allies Hacked . | . . . . . . Hacks Repelled . | . . . . . . Allies | -11 -10 -10 -10 -9 -8 -------- Run | Yrd Mat Min Exi Min Mat Total Allies 2 | . . 2 . . . Largest Group 2 | . . 2 2 . . Highest-Rated Group 46 | . . 46 46 . . Highest-Rated Ally 31 | . . 31 31 . . Total Orders . | . . . . . . Ally Attacks . | . . . . . . Total Damage . | . . . . . . Kills . | . . . . . . Allies Corrupted . | . . . . . . Allies Melted . | . . . . . . Intel | -11 -10 -10 -10 -9 -8 ------- Run | Yrd Mat Min Exi Min Mat Active Infowar (turns) . | . . . . . . Robot Analysis Total . | . . . . . . Derelict Logs Recovered 3 | . . 1 . 2 . Drone Launches 29 | . . 20 . 9 . Drone Recoveries 17 | . . . . 9 8 Exploration | -11 -10 -10 -10 -9 -8 ------------- Run | Yrd Mat Min Exi Min Mat Turns Passed 1640 | 71 67 277 170 712 343 Spaces Moved 894 | 53 56 157 90 366 172 Core 7 | 7 . . . . . Treads . | . . . . . . Legs 887 | 46 56 157 90 366 172 Wheels . | . . . . . . Hover . | . . . . . . Flight . | . . . . . . Fastest Speed 50 | 50 120 120 190 190 190 Average Speed 178 | 110 120 176 190 190 190 Slowest Speed 190 | 120 120 190 190 190 190 Overloaded Moves . | . . . . . . Propulsion Burnouts . | . . . . . . Robots Hopped . | . . . . . . Potential Cave-ins . | . . . . . . Cave-ins Triggered . | . . . . . . Exploration Rate (%) 26 | 4 17 36 12 66 24 Regions Visited 5 Branch Regions 3 Pre-discovered Areas . | . . . . . . Known Exits Taken 1 | . . 1 . . . Unknown Exits Taken 4 | 1 1 . 1 1 . Scrap Searched 1 | . . . . 1 . Spaces Dug . | . . . . . . Terrain Destroyed 44 | . . . . 34 10 Melee . | . . . . . . Projectile . | . . . . . . AOE 44 | . . . . 34 10 Terrain Rammed . | . . . . . . Walls Destroyed . | . . . . . . Machines Disabled . | . . . . . . Actions | -11 -10 -10 -10 -9 -8 --------- Run | Yrd Mat Min Exi Min Mat Total 919 | 62 56 157 89 375 180 Wait . | . . . . . . Move 889 | 52 55 156 89 365 172 Hop . | . . . . . . Pick Up 9 | 4 1 . . 3 1 Fast Attach 7 | 6 . 1 . . . Attach 1 | . . . . . 1 Detach . | . . . . . . Swap 1 | . . . . 1 . Drop 1 | . . . . 1 . Fire 6 | . . . . 4 2 Melee . | . . . . . . Ram . | . . . . . . Kick 5 | . . . . 1 4 Crush . | . . . . . . Escape Stasis . | . . . . . . Rewire . | . . . . . . Trap . | . . . . . . Miscellaneous . | . . . . . . Route ------- -11/Scrapyard -10/Materials -10/Mines -10/Exiles -9/Mines -8/Materials History --------- Turn | Location | Event 22 | -11/Scrapyard | Discovered new exit (range 16) 72 | -11/Scrapyard | Entered Materials 114 | -10/Materials | Discovered new exit (range 7) 139 | -10/Materials | Entered Mines 170 | -10/Mines | Found the Drone Emporium 175 | -10/Mines | Found Prototype Device 175 | -10/Mines | Identified Sensor Drone Bay 310 | -10/Mines | Build established: Mutant 403 | -10/Mines | Deemed a non-threat by the Exiles lab entrance 405 | -10/Mines | Discovered new exit (range 5) 415 | -10/Mines | Identified exit to Exiles 416 | -10/Mines | Entered Exiles 416 | -10/Exiles | Accompanied by 11 allies 446 | -10/Exiles | Led the pair of lost Derelicts to a safe place 468 | -10/Exiles | Discovered new exit (range 14) 504 | -10/Exiles | Met 8R-AWN 586 | -10/Exiles | Entered Mines 586 | -9/Mines | Accompanied by 9 allies 727 | -9/Mines | Learned location of 1 exit from Proximity Caves 814 | -9/Mines | Found a Scrap Suit stashed away for nefarious purposes 818 | -9/Mines | Found Scrap Suit 1281 | -9/Mines | Discovered new exit (range 7) 1298 | -9/Mines | Entered Materials 1298 | -8/Materials | Accompanied by 8 allies 1298 | -8/Materials | Evolved 4 slots: Propulsion x2, Utility x1, Weapon x1 1585 | -8/Materials | Build established: Gunner 1641 | -8/Materials | Self-destructed Last Messages --------------- Sensor Drone retrieved by Sensor Drone Bay (no repairs). W-25 Informer sends out distress signal. Kicked S-10 Pest out of the way. Slug penetrates Wall. Kicked W-25 Informer. R-06 Scavenger suffers critical hit (Burn). S-10 Pest destroyed. R-06 Scavenger collects Flight Unit. Slug penetrates Wall. S-10 Pest destroyed. Com. Wheel melted. R-06 Scavenger destroyed. S-10 Pest destroyed. U-05 Engineer lays Concrete. K-01 Serf destroyed. U-05 Engineer lays Concrete. Grenade Launcher destroyed. Assault Rifle destroyed. U-05 Engineer builds a Wall. The unstable cave ceiling collapses. Map ----- +----------------------------------------------------+ | + #?????????????????????????????????? | | ### #?????????????????????????????????? | | #?# ####??????????????????????????????? | | #?# +??????????????????????????????? | | #?# #######??????????????????????????????? | | #?# #######??????????????????????????????? | | #?# # #??????????????????????????????? | | ###+#####?# # #??????????????????????????????? | | ##### # #??????????????????????????????? | | + #??????????????????????????????? | | ##### #######??????????????????????????????? | | ###########/##???????????????????????????????????? | | ????# #????????????#??????????????????????? | | ????# """ #??????##+### ??????????????????????? | | ????# """ #?????? ???????????????????????? | | ????# """ #??????? ???????????????????????? | | ????# #??????? ???????????????????????? | | ????# """ #???????# #???????????????????????? | | ????# """ #???????# #???????????????????????? | | ????# """ [ #???????# Y#???????????????????????? | | ????# #???????# #???????????????????????? | | #???#####"####???????# #???????????????????????? | | ####### #????????# ##??????????????????????? | | ##########u ########### #????????? | | T [ h # !% #????????? | | ### =@ u * #????????? | | ####### #?# """ [%= w ????????? | | #?????## ##?#= """ Y%=*############ ????????? | | ???????# #??# """ #=!%#???????????????????????? | | ???????# #??# [#???????????????????????? | | ???????# #??### # #???????????????????????? | | ???????# ??? #???????????????????????? | | ???????# ? #???????????????????????? | | #??????# ? #???????????????????????? | | #??????#####?## ?##+####???????????????????????? | | #?????????????# ????????????????????????????????? | | #?????????????# ?????????????????????????????????? | | #????????????????????????????????????????????????? | | #????????????????????????????????????????????????? | | #????????????????????????????????????????????????? | | ?????????????????????????????????????????????????? | | ?????????????????????????????????????????????????? | | ?????????????????????????????????????????????????? | | ?????????????????????????????????????????????????? | | ?????????????????????????????????????????????????? | | ?????????????????????????????????????????????????? | | ?????????????????????????????????????????????????? | | ?????????????????????????????????????????????????? | | ?????????????????????????????????????????????????? | | ?????????????????????????????????????????????????? | +----------------------------------------------------+ Best States ------------- Heat Dissipation 31 Energy Generation 10 Energy Capacity 250 Matter Stores 300 Matter Capacity 300 Sight Range 16 Terrain Scan Density 10 Evasion (%) 55 Item Schematics ----------------- None Robot Schematics ------------------ None Fabricated ------------ Nothing Repaired ---------- Nothing Studied --------- None Alien Tech Used ----------------- None Achievements -------------- Tourist Challenges ------------ None Game ------ Seed FissionCloakingBlade Manual? 0 Play Time 00:12:45 Cumulative 2.9 hours Start 2026.02.04 @ 06:18:55 End 2026.02.04 @ 06:29:50 Sessions 1 Manual Loads 0 Difficulty Rogue Special Mode None Game No. 15 Rogue 12 Adventurer 0 Explorer 3 Win Type - Total 0 Types 0/0/0/0/0/0/0/0/0/0 Lore% 1 Gallery% 7 Achievement% 9 Wizard Run 0 Options --------- Layout 0 ASCII 0 Keyboard 0 Movement Arrows Keybinds 0 Fullscreen 1 Font 24/Smallcaps Map View 76x50 Zoom Use 0% Tactical HUD 0 Map Filters NONE Filters NONE Steam 1 RUN: 773f9de2-ae93-4b18-af21-9415487f4979